Workbook

Sheet Budget - Budget Maiball 2017
A1: Budget Maiball 2017
A2: Einnahmen | B2: ='Einnahmen - Einnahmen durch Spo'!B4+'Einnahmen - Einnahmen durch Ein'!D5 -> 16960
A3: Ausgaben | B3: ='Ausgaben - Ausgaben (vorläufig)'!B31 -> 15629.84
A4: Saldo | B4: =A2:B2-A3:B3 -> 1330.16

Sheet Einnahmen - Einnahmen durch Ein
A1: Einnahmen durch Eintrittskarten
A2: Posten | B2: Anzahl | C2: Stückpreis | D2: Gesamtpreis
A3: Karten, reduziert (Stipendiatinnen/Stipendiaten oder Studierende) | B3: 370 | C3: 35 | D3: =B3*C3 -> 12950
A4: Karten, regulär (Alumni, nicht-mehr-Studierende) | B4: 78 | C4: 45 | D4: =B4*C4 -> 3510
A5: Summe | B5: =SUM(B3:B4) -> 448 | C5: =D5/B5 -> 36.74107143 | D5: =SUM(D3:D4) -> 16460

Sheet Einnahmen - Einnahmen durch Spo
A1: Einnahmen durch Sponsoring
A2: Posten | B2: Gesamtpreis
A3: HeidelbergCement | B3: 500
A4: Summe | B4: =SUM(B3:B3) -> 500

Sheet Ausgaben - Ausgaben (vorläufig)
A1: Ausgaben (vorläufig)
A2: Posten | B2: Betrag | C2: USt.-Satz | D2: USt.-Betrag | E2: Kommentar
A3: Stadthalle | B3: 6595.28 | C3: 0.19 | D3: =B3-(B3/(1+C3)) -> 1053.027899
A4: Veranstalterhaftpflicht | B4: 192 | C4: 0 | D4: 0
A5: Catering | B5: 2856 | C5: 0.19 | D5: 456
D6: 0
A7: Getränkeeinkauf/Verpflegung Tanzorchester/Rosen/Tänzer (REWE+Aldi) | B7: ='Nebenrechnungen - Einkäufe'!B15 -> 174.76 | D7: 0
D8: 0
A9: Gage Tanzorchester | B9: 2300 | C9: 0 | D9: 0
A10: Gage Vertikaltuchartistin | B10: 250 | D10: 0 | E10: Rechnung steht noch aus, Quittung liegt vor; Ausgelegt von Tobi
A11: Gage Ballett | B11: 230 | D11: 0
A12: GEMA | B12: 1761.22 | C12: 0.07 | D12: 115.22
A13: Raummiete Tanzkurs | B13: 178.5 | C13: 0.19 | D13: 28.5
D14: 0
A15: Schloßführung sans Alumnibeitrag | B15: 100 | D15: 0
A16: Photograph | B16: 100 | D16: 0
D17: 0
A18: Umschläge und Briefmarken | B18: 157 | C18: 0.07 | D18: 10.27102804
A19: Druckkosten Karten | B19: 34.26 | C19: 0.19 | D19: 5.470084034
D20: 0
A21: Vereinsregistereintrag | B21: 50 | D21: 0
A22: Notariat (Unterschriftsbeglaubigungen) | B22: 23.8 | D22: 0
A23: Kontoführungsgebühr | B23: ='Nebenrechnungen - Kontoführungs'!B15 -> 109.72 | D23: 0
A24: Servermiete | B24: 36.94 | C24: 0.19 | D24: 5.897983193
A25: Sonstige Ausgaben | B25: ='Nebenrechnungen - Sonstiges'!B15 -> 111.82 | D25: 0
D26: 0
A27: Blumen | B27: 195 | D27: 0
A28: Herzen und Bänder | B28: 75.44 | D28: 0
A29: Tischläufer | B29: 98.1 | C29: 0.19 | D29: 15.66302521
D30: 0
A31: Gesamt | B31: =SUM(B3:B30) -> 15629.84 | D31: =SUM(D3:D30) -> 1690.05002

Sheet Ausgaben - Legende
A1: Legende
A2: Bezahlt
A3: Offen
A4: Geschätzt
A5: Korrektur nötig

Sheet Nebenrechnungen - Kontoführungs
A1: Kontoführungsgebühren 2017
A2: Monat | B2: Gebühr
A3: Januar | B3: 8.93
A4: Februar | B4: 9.4
A5: März | B5: 64.97
A6: 2013-03-31 | B6: 9.16
A7: Mai | B7: 17.26
A8: Juni
A9: Juli
A10: 2013-07-31
A11: 2013-08-31
A12: Oktober
A13: 2013-10-31
A14: Dezember
A15: Gesamt | B15: =SUM(B3:B14) -> 109.72

Sheet Nebenrechnungen - Einkäufe
A1: Einkäufe
A2: Rechnung | B2: Betrag
A3: Aldi 20. 5. 2017 I | B3: 105.66
A4: REWE 20. 5. 2017 I | B4: 38.82
A5: Aldi 20. 5. 2017 II | B5: 24.29
A6: REWE 20. 5. 2017 II | B6: 40.32
A7: davon Pfand | B7: -34.33
A15: Gesamt | B15: =SUM(B3:B14) -> 174.76

Sheet Nebenrechnungen - Sonstiges
A1: Sonstiges
A2: Was? | B2: Betrag | C2: Wer?
A3: Porto GEMA | B3: 0.7 | C3: Vereinskonto
A4: Parkgebühr | B4: 4.5 | C4: Peter
A5: Kopien | B5: 8.12 | C5: Peter
A6: Verpflegung für Photographenfreund (der die Abendkasse vertreten hat) | B6: 15 | C6: Dani
A7: Fahrtkosten Einkauf | B7: 9 | C7: Felix
A8: Strafgebühr B41 | B8: 74.5
A15: Gesamt | B15: =SUM(B3:C14) -> 111.82
